Cogmind - Beta 12 X3 @@@ ROGUE MODE // 2022.09.07 @ 21:54:13 Player: Jezoensis Result: Self-destructed Performance ------------- Evolutions (6) 3000 Regions Visited (14) 2800 Robots Destroyed (128) 640 Value Destroyed (4172) 4172 Prototype IDs (43) 860 Alien Tech Used (0) 0 Bonus (1873) 1873 TOTAL SCORE: 13345 Bonus ------- High Alert Combat Kills 149 Follower Combat Kills 353 Entered Garrisons 200 Used RIF Installer 500 Entered DSFs 500 Aligned with FarCom 300 Friendly Fire -129 Cogmind --------- Core Integrity 893/1150 Matter 10/300 Energy 394/394 System Corruption 0% Temperature Cool (0) Movement Rolling (185) Ox7 Location -4/Factory Parts ------- > --- POWER (2) -------- Multi-Fission Core > --- PROPULSION (4) --- Armored Medium Treads Wheel > --- UTILITY (10) ----- Armored Scrap Engine Large Storage Unit Visual Processing Unit Improved Terrain Scanner Terrain Scan Processor Advanced Terrain Scan Processor Targeting Computer Weapon Cycler Advanced Transmission Jammer > --- WEAPON (3) ------- Hardcell Cannon Heavy Ballistic Linear Construct/C > --- INVENTORY (15) --- Improved Kinecellerator Advanced Transmission Jammer Cloak of Protection Reactive Plating Advanced Shield Generator Advanced Shield Generator Long-range Tractor Beam Magnetic Acceleration Cannon Magnetic Acceleration Cannon Magnetic Acceleration Cannon Magnetic Acceleration Cannon Proton Missile Launcher Heavy Rocket Launcher Peak State ------------ > --- POWER ------------ Multi-Fission Core > --- PROPULSION ------- Light Treads Light Treads Armored Medium Treads Treaded Exoskeleton > --- UTILITY ---------- Armored Scrap Engine Large Storage Unit Visual Processing Unit Advanced Terrain Scan Processor Targeting Computer Advanced Transmission Jammer Cloak of Protection > --- WEAPON ----------- Magnetic Acceleration Cannon Heavy Linear Accelerator > --- INVENTORY -------- Improved Matter Compressor Improved Terrain Scanner Improved Kinecellerator Weapon Cycler Advanced Transmission Jammer Reactive Plating Advanced Shield Generator Advanced Shield Generator Long-range Tractor Beam Magnetic Acceleration Cannon Magnetic Acceleration Cannon Magnetic Acceleration Cannon Magnetic Acceleration Cannon Proton Missile Launcher Heavy Rocket Launcher [Rating: 92] Favorites ----------- Power Multi-Fission Core Engine Improved Ion Engine Power Core Multi-Fission Core Propulsion Light Treads Treads Light Treads Wheel Wheel Utility Improved Terrain Scanner Device Improved Terrain Scanner Storage Large Storage Unit Processor Advanced Terrain Scan Processor Protection Reactive Plating Weapon Heavy Ballistic Linear Construct/C Energy Gun Heavy EM Shotgun Ballistic Gun Improved Assault Rifle Ballistic Cannon Heavy Ballistic Linear Construct/C Launcher Rocket Launcher Special Weapon Mining Laser Slashing Weapon Great Axe Build | -11 -10 -10 -10 -9 -8 -7 -7 -7 -6 -6 -6 -5 -5 -4 ------- Run | Scr Mat Min Exi Min Mat Fac Gar Fac Fac Low Low Fac DSF Fac Slots Evolved 12 | . . . . . 4 2 . . 2 . . 2 . 2 Power 1 | . . . . . . . . . . . . 1 . . Propulsion 2 | . . . . . 1 . . . 1 . . . . . Utility 8 | . . . . . 2 2 . . 1 . . 1 . 2 Weapon 1 | . . . . . 1 . . . . . . . . . Parts Attached 239 | 8 24 8 3 . 79 2 22 20 23 . 5 5 32 8 Power 7 | 1 1 . . . 4 . . . 1 . . . . . Engine 4 | 1 1 . . . 2 . . . . . . . . . Core 3 | . . . . . 2 . . . 1 . . . . . Reactor . | . . . . . . . . . . . . . . . Propulsion 55 | 3 10 5 . . 21 . 8 3 2 . . 1 1 1 Treads 30 | . 5 2 . . 11 . 5 3 2 . . 1 1 . Leg . | . . . . . . . . . . . . . . . Wheel 25 | 3 5 3 . . 10 . 3 . . . . . . 1 Hover . | . . . . . . . . . . . . . . . Flight . | . . . . . . . . . . . . . . . Utility 98 | 2 1 . . . 23 2 6 10 16 . 5 4 23 6 Device 76 | 1 . . . . 16 1 5 10 13 . 3 3 20 4 Storage 5 | 1 1 . . . 1 . 1 . . . . 1 . . Processor 9 | . . . . . 4 1 . . 2 . 1 . . 1 Hackware . | . . . . . . . . . . . . . . . Protection 8 | . . . . . 2 . . . 1 . 1 . 3 1 Artifact . | . . . . . . . . . . . . . . . Weapon 79 | 2 12 3 3 . 31 . 8 7 4 . . . 8 1 Energy Gun 31 | 1 9 2 1 . 16 . 2 . . . . . . . Energy Cannon . | . . . . . . . . . . . . . . . Ballistic Gun 23 | 1 1 1 1 . 10 . 4 4 1 . . . . . Ballistic Cannon 10 | . . . . . . . . . 3 . . . 6 1 Launcher 5 | . . . . . 1 . 2 . . . . . 2 . Special Weapon 5 | . 2 . 1 . 2 . . . . . . . . . Impact Weapon . | . . . . . . . . . . . . . . . Slashing Weapon 5 | . . . . . 2 . . 3 . . . . . . Piercing Weapon . | . . . . . . . . . . . . . . . Special Melee Weapon . | . . . . . . . . . . . . . . . Unidentified Prototypes 8 | . . . . . 6 . . 1 . . . 1 . . Parts Lost 13 | . . 1 . . 4 . 2 . 1 . . . 3 2 Power . | . . . . . . . . . . . . . . . Propulsion 8 | . . . . . 1 . 2 . 1 . . . 2 2 Utility 2 | . . . . . 1 . . . . . . . 1 . Weapon 3 | . . 1 . . 2 . . . . . . . . . Highest Loss Streak 2 | . . 1 . . 1 . 1 . 1 . . . 2 2 To Critical Strikes . | . . . . . . . . . . . . . . . Average Slot Usage (%) 91 | . 100 99 79 100 99 89 90 91 87 86 86 82 78 69 Engine 3 | . 14 14 14 14 5 . . . . . . . . . Core 4 | . . . . . 3 4 7 7 5 6 6 5 5 5 Treads 14 | . 5 2 . . 10 7 9 23 23 26 26 23 21 10 Wheel 9 | . 22 25 28 28 16 15 9 . . . . . . 1 Device 13 | . 14 14 14 14 9 15 15 15 15 20 12 17 16 20 Storage 8 | . 14 14 14 14 9 7 7 7 6 6 6 5 5 5 Processor 13 | . . . . . 17 15 15 15 17 13 19 17 17 16 Energy Gun 7 | . 20 18 1 14 12 7 9 3 . . . . . . Ballistic Gun 10 | . 4 9 1 14 14 15 11 17 10 6 6 5 . . Ballistic Cannon 1 | . . . . . . . . . 3 6 6 5 8 8 Naked Turns . | . . . . . . . . . . . . . . . Heaviest Build 91 | 14 32 32 32 32 61 60 63 46 65 65 74 81 91 74 Greatest Support 95 | 26 40 20 20 20 26 26 60 68 92 92 92 92 95 67 Greatest Overweight (x) 7 | . 1 3 1 1 3 2 6 . . . . . 1 7 Average Overweight (x) . | . . 1 1 1 1 1 2 . . . . . . 2 Largest Inventory Capacity 20 | 8 15 15 15 15 20 20 20 15 15 15 15 15 15 15 Average Capacity 15 | 7 10 15 15 15 18 20 18 15 15 15 15 15 15 15 Most Carried 20 | 7 10 13 15 15 20 20 20 15 15 15 15 15 15 15 Average Carried 14 | 4 8 11 14 15 17 19 17 14 14 14 14 14 14 14 Final Capacity 20 | 8 15 15 15 15 20 20 15 15 15 15 15 15 15 15 Final Carried 20 | 7 10 13 15 15 20 20 14 15 15 15 15 15 14 13 Class Distribution -------------------- 28% | Scavenger-Skirmisher 28% | Skirmisher 27% | Mutant 5% | Scavenger-Assassin 3% | Assassin 3% | Scavenger-Mutant 3% | Gunner Dominant Class ---------------- Mutant | -10/Materials Mutant | -10/Mines Mutant | -10/Exiles Skirmisher | -9/Mines Skirmisher | -8/Materials Skirmisher | -7/Factory Scavenger-Skirmisher | -7/Garrison Scavenger-Skirmisher | -7/Factory Scavenger-Assassin | -6/Factory Mutant | -6/Lower Caves Scavenger-Skirmisher | -6/Lower Caves Scavenger-Skirmisher | -5/Factory Scavenger-Skirmisher | -5/DSF Skirmisher | -4/Factory Resources | -11 -10 -10 -10 -9 -8 -7 -7 -7 -6 -6 -6 -5 -5 -4 ----------- Run | Scr Mat Min Exi Min Mat Fac Gar Fac Fac Low Low Fac DSF Fac Matter Collected 4830 | 264 193 203 47 . 1531 . 626 263 612 52 42 250 718 29 Remotely 653 | . . . . . . . . 50 364 . . . 211 28 Salvage Created 4915 | 92 390 312 . . 2653 . 249 480 434 . 49 . 256 . Parts 278 | 11 33 25 . . 141 . 12 24 16 . 3 . 10 3 Haulers Intercepted 5 | . 1 . . . 4 . . . . . . . . . Recyclers Shooed 3 | 1 . . . . 1 . . . . . . . . 1 Parts Field Recycled . | . . . . . . . . . . . . . . . Retrieved Matter . | . . . . . . . . . . . . . . . Parts Self-Destructed 2 | . . . . . . . . . . . 2 . . . Prevented . | . . . . . . . . . . . . . . . Kills | -11 -10 -10 -10 -9 -8 -7 -7 -7 -6 -6 -6 -5 -5 -4 ------- Run | Scr Mat Min Exi Min Mat Fac Gar Fac Fac Low Low Fac DSF Fac Combat Hostiles Destroyed 87 | . 13 4 . . 36 . 6 10 9 . 1 . 7 1 Guns 59 | . 11 4 . . 30 . 3 9 2 . . . . . Cannons 15 | . . . . . . . . . 6 . 1 . 7 1 AOE 11 | . 2 . . . 4 . 3 1 1 . . . . . Classes Destroyed 16 | 1 4 1 . . 6 . . 2 . . . . 2 . Worker 9 | . . . . . 8 . . . . . . . . 1 Builder 12 | . . 5 . . 4 . . . 2 . . . . 1 Tunneler 8 | 4 . 1 . . 3 . . . . . . . . . Hauler 5 | . 1 . . . 4 . . . . . . . . . Recycler 1 | . . . . . 1 . . . . . . . . . Operator 4 | . . . . . 3 . . 1 . . . . . . Watcher 5 | . 1 . . . 4 . . . . . . . . . Swarmer 14 | . 9 . . . . . 3 2 . . . . . . Grunt 44 | . 4 4 . . 26 . . 4 6 . . . . . Brawler 1 | . . . . . 1 . . . . . . . . . Duelist 2 | . . . . . 1 . 1 . . . . . . . Sentry 13 | . . . . . 8 . 2 1 1 . . . . 1 Specialist 3 | . . . . . . . . . . . . . 3 . Hunter 6 | . . . . . . . . 2 . . 1 . 3 . Programmer 3 | . . . . . . . . 1 2 . . . . . Heavy 1 | . . . . . . . . . . . . . 1 . Best Kill Streak 9 | 4 6 4 . . 9 . 2 3 6 . 1 . 2 2 Combat Bots Only 6 | . 5 2 . . 6 . 2 3 5 . 1 . 2 1 Max Kills in Single Turn 3 | 1 1 1 . . 3 . 1 1 2 . 1 . 1 1 Gunslinging 1 | . . . . . 1 . . . . . . . . . Exploded 2 | . 1 . . . 2 . 1 1 1 . . . . . Melee . | . . . . . . . . . . . . . . . Uniques/NPCs Destroyed . | . . . . . . . . . . . . . . . Combat | -11 -10 -10 -10 -9 -8 -7 -7 -7 -6 -6 -6 -5 -5 -4 -------- Run | Scr Mat Min Exi Min Mat Fac Gar Fac Fac Low Low Fac DSF Fac Damage Taken 5535 | . 294 287 . . 1541 . 572 308 538 . 37 . 1347 611 Core 946 | . 116 36 . . 212 . 63 13 151 . . . 98 257 Absorbed by Shields 137 | . . . . . . . . . . . . . 137 . Core Remaining (%) 76 | 100 . . . 39 61 . . 89 . . 82 . 90 . Volleys Fired 276 | 15 30 22 . . 100 . 26 20 21 . 1 4 25 12 Largest 3 | 2 2 2 . . 3 . 3 3 3 . 1 1 2 2 Hottest 159 | 70 100 80 . . 134 . 133 103 159 . 83 83 140 149 Shots Fired 650 | 30 54 44 . 1 279 . 62 60 55 . 1 4 40 20 Gun 533 | 30 48 44 . 1 272 . 59 60 19 . . . . . Cannon 101 | . . . . . . . . . 36 . 1 4 40 20 Launcher 6 | . . . . . 3 . 3 . . . . . . . Special 10 | . 6 . . . 4 . . . . . . . . . Kinetic 371 | 15 5 14 . 1 144 . 37 52 38 . 1 4 40 20 Thermal 56 | 15 11 5 . . 25 . . . . . . . . . Explosive 6 | . . . . . 3 . 3 . . . . . . . Electromagnetic 217 | . 38 25 . . 107 . 22 8 17 . . . . . Robot Hit Streak 33 | 5 12 8 . 2 33 . 16 21 8 . 6 . 9 6 Robot Miss Streak 4 | 2 2 2 . . 4 . 1 3 2 . . . 3 2 Penetration Max 1 | . . . . . . . 1 . . . . . . . Secondary Targets 9 | . . 1 . . 7 . . 1 . . . . . . Max Gunslinging Chain 1 | . . 1 . . 1 . . 1 . . . . . . Shots Hit Robots 453 | 18 30 26 . 1 204 . 44 56 40 . 1 . 21 12 Core Hits 256 | 5 18 16 . . 119 . 19 42 23 . 1 . 9 4 Critical Kills 2 | . . . . . 2 . . . . . . . . . Critical Parts Destroyed 5 | 1 . . . . . . . 4 . . . . . . Critical Strikes 12 | 2 . . . . 2 . 1 4 1 . . . 1 1 Burn 1 | 1 . . . . . . . . . . . . . . Destroy 7 | 1 . . . . 2 . . 4 . . . . . . Blast 3 | . . . . . . . . . 1 . . . 1 1 Corrupt 1 | . . . . . . . 1 . . . . . . . Melee Attacks 12 | . . . . . 2 . . 3 7 . . . . . Impact . | . . . . . . . . . . . . . . . Slashing 12 | . . . . . 2 . . 3 7 . . . . . Piercing . | . . . . . . . . . . . . . . . Sneak Attacks 1 | . . . . . . . . . 1 . . . . . Combat Hostiles . | . . . . . . . . . . . . . . . Follow-up Attacks . | . . . . . . . . . . . . . . . Damage Inflicted 11733 | 201 590 437 . 15 5026 . 1040 1155 1340 . 54 . 1215 660 Guns 6909 | 201 408 362 . 15 4023 . 795 895 210 . . . . . Cannons 2865 | . . . . . . . . . 950 . 54 . 1215 646 Explosions 1846 | . 182 75 . . 995 . 245 248 101 . . . . . Melee 79 | . . . . . . . . . 79 . . . . . Ramming 34 | . . . . . 8 . . 12 . . . . . 14 Kinetic 6008 | 76 20 105 . 15 1537 . 589 801 950 . 54 . 1215 646 Thermal 1743 | 125 233 114 . . 1042 . 55 73 101 . . . . . Explosive 503 | . . . . . 248 . 190 65 . . . . . . Electromagnetic 3366 | . 337 218 . . 2191 . 206 204 210 . . . . . Impact . | . . . . . . . . . . . . . . . Slashing 79 | . . . . . . . . . 79 . . . . . Piercing . | . . . . . . . . . . . . . . . Highest Corruption 4 | . 1 1 1 1 . . . 4 2 2 2 . . . Average Corruption 1 | . 1 1 1 1 . . . 3 1 2 2 . . . Corruption Purged . | . . . . . . . . . . . . . . . Corruption Blocked . | . . . . . . . . . . . . . . . Effects 40 | . 6 3 2 1 . . . 17 4 5 2 . . . Message Errors 7 | . 2 1 1 . . . . 2 . 1 . . . . Matter Fused 12 | . 2 . . . . . . 7 . 2 1 . . . Heat Flow Errors 5 | . . . . . . . . 3 1 . 1 . . . Energy Discharges 4 | . . 1 . . . . . . 2 1 . . . . Data Loss (minor) 5 | . . . 1 . . . . 4 . . . . . . Data Loss (major) 3 | . 2 . . . . . . 1 . . . . . . Misfires 2 | . . 1 . 1 . . . . . . . . . . Alerts 1 | . . . . . . . . . . 1 . . . . Weapon Failures 1 | . . . . . . . . . 1 . . . . . Overload Shots . | . . . . . . . . . . . . . . . Overflow Damage 279 | . . . . . 40 . 11 18 79 . . . 110 21 Projectiles 171 | . . . . . . . . . 40 . . . 110 21 Explosions 69 | . . . . . 40 . 11 18 . . . . . . Melee 39 | . . . . . . . . . 39 . . . . . Knockbacks 10 | . . . . . . . . . 4 . . . 6 . Impact . | . . . . . . . . . . . . . . . Kinetic 10 | . . . . . . . . . 4 . . . 6 . Secondary . | . . . . . . . . . . . . . . . Self-Inflicted Damage 376 | . 76 . . . 286 . . 8 . . . . . 6 Shots 10 | . 2 . . . 7 . . 1 . . . . . . Rammed 6 | . . . . . 1 . . 2 . . . . . 3 Targets Rammed 6 | . . . . . 1 . . 2 . . . . . 3 Kicked . | . . . . . . . . . . . . . . . Crushed . | . . . . . . . . . . . . . . . Highest Temperature 700 | 140 243 227 . . 258 . 154 247 700 . 270 36 185 528 Average Temperature 89 | 51 56 77 . . 66 . 40 88 255 . 139 18 49 258 Received Heat Transfer 1498 | . 54 168 . . 675 . 108 60 102 . . . 253 78 Effects 14 | . . 1 . . . . . . 11 . . . . 2 Shutdowns 2 | . . . . . . . . . 2 . . . . . Energy Bleed 2 | . . 1 . . . . . . 1 . . . . . Interference 1 | . . . . . . . . . 1 . . . . . Short Circuit 2 | . . . . . . . . . 1 . . . . 1 Damage (major) 5 | . . . . . . . . . 5 . . . . . Damage (core) 2 | . . . . . . . . . 1 . . . . 1 Siege Activations . | . . . . . . . . . . . . . . . Robots Corrupted 2 | . . . . . 2 . . . . . . . . . Combat Hostiles 2 | . . . . . 2 . . . . . . . . . Parts Fried 12 | . 1 1 . . 10 . . . . . . . . . Impact Corruptions . | . . . . . . . . . . . . . . . Robots Melted . | . . . . . . . . . . . . . . . Combat Hostiles . | . . . . . . . . . . . . . . . Parts Melted 3 | 3 . . . . . . . . . . . . . . Heat Transferred 2532 | 444 298 211 . . 1329 . 50 100 100 . . . . . Parts Sabotaged . | . . . . . . . . . . . . . . . Parts Stolen . | . . . . . . . . . . . . . . . Parts Stripped . | . . . . . . . . . . . . . . . Power Chain Reactions 17 | . 3 1 . . 10 . 1 1 1 . . . . . Missiles Intercepted . | . . . . . . . . . . . . . . . Alert | -11 -10 -10 -10 -9 -8 -7 -7 -7 -6 -6 -6 -5 -5 -4 ------- Run | Scr Mat Min Exi Min Mat Fac Gar Fac Fac Low Low Fac DSF Fac Peak Influence 607 | 20 428 116 . . 518 228 607 524 315 . . 97 231 184 Initial 318 | . 13 1 . . . 199 159 318 187 . . 70 67 121 Average 240 | 7 196 32 . . 264 204 423 399 195 . . 78 154 153 Maximum Alert Level 2 | . 2 . . . 2 1 2 2 1 . . . 1 . Low Security (%) 50 | 100 53 100 . 100 36 75 13 . 69 . . 100 88 100 Level 1 28 | . 35 . . . 31 24 26 64 30 . . . 11 . Level 2 20 | . 10 . . . 31 . 60 35 . . . . . . Level 3 . | . . . . . . . . . . . . . . . Level 4 . | . . . . . . . . . . . . . . . Level 5 . | . . . . . . . . . . . . . . . High Security . | . . . . . . . . . . . . . . . Max Security . | . . . . . . . . . . . . . . . Squads Dispatched 16 | . 1 . . . 5 . . 3 4 . . 1 2 . Investigation 5 | . 1 . . . 3 . . 1 . . . . . . Extermination 3 | . . . . . . . . 1 2 . . . . . Reinforcement 7 | . . . . . 2 . . 1 1 . . 1 2 . Assault . | . . . . . . . . . . . . . . . Garrison 1 | . . . . . . . . . 1 . . . . . Intercept . | . . . . . . . . . . . . . . . Searches Triggered . | . . . . . . . . . . . . . . . Construction Impeded 2 | . . . . . 2 . . . . . . . . . Haulers Reinforced . | . . . . . . . . . . . . . . . Active Scanning Responses . | . . . . . . . . . . . . . . . Cargo Convoy Interrupts . | . . . . . . . . . . . . . . . Stealth | -11 -10 -10 -10 -9 -8 -7 -7 -7 -6 -6 -6 -5 -5 -4 --------- Run | Scr Mat Min Exi Min Mat Fac Gar Fac Fac Low Low Fac DSF Fac Distress Signals 3 | . 1 . . . 2 . . . . . . . . . Communications Jammed . | . . . . . . . . . . . . . . . Distress Signals . | . . . . . . . . . . . . . . . Times Spotted 126 | . 17 4 . . 52 2 13 12 15 . 1 . 9 1 Peak Tracking Total 6 | . 6 2 . . 5 2 4 3 6 . 1 1 3 1 Tactical Retreats 9 | . 1 . . . 3 . 1 1 3 . . . . . Traps | -11 -10 -10 -10 -9 -8 -7 -7 -7 -6 -6 -6 -5 -5 -4 ------- Run | Scr Mat Min Exi Min Mat Fac Gar Fac Fac Low Low Fac DSF Fac Traps Triggered 7 | . . . . . 2 . 3 . . . . . 1 1 Indirectly . | . . . . . . . . . . . . . . . Trap Hack Attempts . | . . . . . . . . . . . . . . . Triggered . | . . . . . . . . . . . . . . . Disarmed . | . . . . . . . . . . . . . . . Reprogrammed . | . . . . . . . . . . . . . . . Reused . | . . . . . . . . . . . . . . . Traps Extracted . | . . . . . . . . . . . . . . . Installed . | . . . . . . . . . . . . . . . Triggered . | . . . . . . . . . . . . . . . Machines | -11 -10 -10 -10 -9 -8 -7 -7 -7 -6 -6 -6 -5 -5 -4 ---------- Run | Scr Mat Min Exi Min Mat Fac Gar Fac Fac Low Low Fac DSF Fac Machines Disabled 12 | . . . . . 5 . 1 5 1 . . . . . Max in Single Turn 3 | . . . . . 2 . 1 3 1 . . . . . Garrison Access 3 | . . . . . . . . 2 1 . . . . . Machines Sabotaged . | . . . . . . . . . . . . . . . Overloaded Fab Kills . | . . . . . . . . . . . . . . . Hacking | -11 -10 -10 -10 -9 -8 -7 -7 -7 -6 -6 -6 -5 -5 -4 --------- Run | Scr Mat Min Exi Min Mat Fac Gar Fac Fac Low Low Fac DSF Fac Machines Accessed 35 | . 8 . 1 . 12 1 1 7 2 . . 2 . 1 Terminals 28 | . 8 . . . 12 . 1 3 1 . . 2 . 1 Fabricators 1 | . . . . . . . . 1 . . . . . . Repair Stations . | . . . . . . . . . . . . . . . Recycling Units 1 | . . . . . . . . 1 . . . . . . Scanalyzers . | . . . . . . . . . . . . . . . Garrison Access 4 | . . . . . . 1 . 2 1 . . . . . Total Hacks 96 | . 27 . 1 . 40 1 1 15 2 . . 7 . 2 Successful 47 | . 16 . 1 . 14 1 1 7 1 . . 5 . 1 Failed 47 | . 10 . . . 25 . . 8 1 . . 2 . 1 Catastrophic 8 | . . . . . 4 . . 2 1 . . . . 1 Database Lockouts 2 | . 1 . . . 1 . . . . . . . . . Manual 70 | . 20 . 1 . 34 . . 10 . . . 4 . 1 Terminals 86 | . 27 . . . 40 . 1 8 1 . . 7 . 2 Fabricators 4 | . . . . . . . . 4 . . . . . . Repair Stations . | . . . . . . . . . . . . . . . Recycling Units 1 | . . . . . . . . 1 . . . . . . Scanalyzers . | . . . . . . . . . . . . . . . Garrison Access 4 | . . . . . . 1 . 2 1 . . . . . Terminal Hacks 27 | . 10 . 1 . 11 . 1 1 . . . 3 . . Part Schematic 1 | . . . . . . . . 1 . . . . . . Robot Analysis 7 | . 3 . . . 3 . . . . . . 1 . . Prototype ID Bank 4 | . . . . . 3 . . . . . . 1 . . Open DSF 1 | . . . . . . . . . . . . 1 . . Branch Access Points 1 | . 1 . . . . . . . . . . . . . Emergency Access Points 1 | . . . . . . . 1 . . . . . . . Terminal Index 2 | . 1 . . . 1 . . . . . . . . . Unreport Threat 5 | . 2 . . . 3 . . . . . . . . . Locate Traps 3 | . 2 . . . 1 . . . . . . . . . Zone Layout 1 | . 1 . . . . . . . . . . . . . EX-Prototype ID Bank 1 | . . . 1 . . . . . . . . . . . Fabricator Hacks 2 | . . . . . . . . 2 . . . . . . Load Schematic 1 | . . . . . . . . 1 . . . . . . Build 1 | . . . . . . . . 1 . . . . . . Repair Station Hacks . | . . . . . . . . . . . . . . . Recycling Unit Hacks . | . . . . . . . . . . . . . . . Scanalyzer . | . . . . . . . . . . . . . . . Garrison Access Hacks 4 | . . . . . . 1 . 2 1 . . . . . Unlock Access 1 | . . . . . . 1 . . . . . . . . Seal Access 3 | . . . . . . . . 2 1 . . . . . Unauthorized Hacks 14 | . 6 . . . 3 . . 2 . . . 2 . 1 Terminals 13 | . 6 . . . 3 . . 1 . . . 2 . 1 Track 2 | . 2 . . . . . . . . . . . . . Assimilate 1 | . 1 . . . . . . . . . . . . . Botnet 7 | . 2 . . . 2 . . 1 . . . 1 . 1 Operators 3 | . 1 . . . 1 . . . . . . 1 . . Fabricators 1 | . . . . . . . . 1 . . . . . . Prioritize 1 | . . . . . . . . 1 . . . . . . Repair Stations . | . . . . . . . . . . . . . . . Recycling Units . | . . . . . . . . . . . . . . . Scanalyzers . | . . . . . . . . . . . . . . . Garrison Access . | . . . . . . . . . . . . . . . Data Cores Recovered 2 | . . . . . 1 . . 1 . . . . . . Used 2 | . . . . . 1 . . 1 . . . . . . Hacking Detections 27 | . 7 . . . 12 . . 5 1 . . 1 . 1 Full Trace Events 5 | . 3 . . . 1 . . 1 . . . . . . Feedback Events 1 | . 1 . . . . . . . . . . . . . Corruption 1 | . 1 . . . . . . . . . . . . . Feedback Blocked . | . . . . . . . . . . . . . . . Robot Schematics Acquired . | . . . . . . . . . . . . . . . Robots Built . | . . . . . . . . . . . . . . . Authchips . | . . . . . . . . . . . . . . . Time . | . . . . . . . . . . . . . . . Total Robot Build Rating . | . . . . . . . . . . . . . . . Part Schematics Acquired 1 | . . . . . . . . 1 . . . . . . Parts Built 2 | . . . . . . . . 2 . . . . . . Authchips . | . . . . . . . . . . . . . . . Time 36 | . . . . . . . . 36 . . . . . . Total Part Build Rating 6 | . . . . . . . . 6 . . . . . . Parts Repaired . | . . . . . . . . . . . . . . . Time . | . . . . . . . . . . . . . . . Parts Recycled . | . . . . . . . . . . . . . . . Recycled Matter . | . . . . . . . . . . . . . . . Retrieved Matter . | . . . . . . . . . . . . . . . Retrieved Components . | . . . . . . . . . . . . . . . Parts Scanalyzed . | . . . . . . . . . . . . . . . Part Schematics Acquired . | . . . . . . . . . . . . . . . Parts Damaged . | . . . . . . . . . . . . . . . Bothacking | -11 -10 -10 -10 -9 -8 -7 -7 -7 -6 -6 -6 -5 -5 -4 ------------ Run | Scr Mat Min Exi Min Mat Fac Gar Fac Fac Low Low Fac DSF Fac Used RIF Installer 1 | . . . . . . . 1 . . . . . . . Robots Hacked . | . . . . . . . . . . . . . . . Non-combat . | . . . . . . . . . . . . . . . Combat . | . . . . . . . . . . . . . . . Robot Hacks Applied . | . . . . . . . . . . . . . . . Relay Couplers Released . | . . . . . . . . . . . . . . . Fabnet Peak Effective % . | . . . . . . . . . . . . . . . Robots Rewired . | . . . . . . . . . . . . . . . Allies Hacked . | . . . . . . . . . . . . . . . Hacks Repelled . | . . . . . . . . . . . . . . . Allies | -11 -10 -10 -10 -9 -8 -7 -7 -7 -6 -6 -6 -5 -5 -4 -------- Run | Scr Mat Min Exi Min Mat Fac Gar Fac Fac Low Low Fac DSF Fac Total Allies 3 | . 1 . . . . . 2 . . . . . . . Largest Group 2 | . 1 1 1 1 1 . 2 . . . . . . . Highest-Rated Group 157 | . 10 10 10 10 10 . 157 . . . . . . . Highest-Rated Ally 95 | . 10 10 10 10 10 . 95 . . . . . . . Total Orders 13 | . 2 3 . . 8 . . . . . . . . . STAY 5 | . 1 1 . . 3 . . . . . . . . . FOLLOW 8 | . 1 2 . . 5 . . . . . . . . . Ally Attacks 24 | . . . . . . . 24 . . . . . . . Total Damage 1146 | . . . . . . . 1146 . . . . . . . Kills 10 | . . . . . . . 10 . . . . . . . Allies Corrupted . | . . . . . . . . . . . . . . . Allies Melted . | . . . . . . . . . . . . . . . Intel | -11 -10 -10 -10 -9 -8 -7 -7 -7 -6 -6 -6 -5 -5 -4 ------- Run | Scr Mat Min Exi Min Mat Fac Gar Fac Fac Low Low Fac DSF Fac Robot Analysis Total 7 | . 3 . . . 3 . . . . . . 1 . . Derelict Logs Recovered 3 | . . 1 . . . . . . . 1 1 . . . Drone Launches . | . . . . . . . . . . . . . . . Drone Recoveries . | . . . . . . . . . . . . . . . Exploration | -11 -10 -10 -10 -9 -8 -7 -7 -7 -6 -6 -6 -5 -5 -4 ------------- Run | Scr Mat Min Exi Min Mat Fac Gar Fac Fac Low Low Fac DSF Fac Turns Passed 7048 | 112 466 457 254 60 1678 131 606 1012 827 274 162 381 334 294 Spaces Moved 4294 | 66 356 386 261 62 987 108 345 560 435 171 92 215 117 133 Core 23 | 23 . . . . . . . . . . . . . . Treads 1779 | . 15 . . . . . 89 560 435 171 92 215 117 85 Legs . | . . . . . . . . . . . . . . . Wheels 2492 | 43 341 386 261 62 987 108 256 . . . . . . 48 Hover . | . . . . . . . . . . . . . . . Flight . | . . . . . . . . . . . . . . . Fastest Speed 50 | 50 80 95 95 95 95 105 110 160 160 160 160 160 160 163 Average Speed 128 | 72 90 95 95 95 112 115 132 160 160 160 160 160 163 180 Slowest Speed 330 | 90 160 125 95 95 145 120 170 160 160 160 160 160 243 330 Overloaded Moves . | . . . . . . . . . . . . . . . Propulsion Burnouts . | . . . . . . . . . . . . . . . Robots Hopped . | . . . . . . . . . . . . . . . Cave-ins Triggered . | . . . . . . . . . . . . . . . Exploration Rate (%) 39 | 4 78 79 66 20 90 6 51 19 14 38 21 9 92 5 Regions Visited 14 Branch Regions 5 Pre-discovered Areas 1 | . . 1 . . . . . . . . . . . . Known Exits Taken 4 | . 1 . . . 1 1 . . . . . 1 . . Unknown Exits Taken 8 | 1 . 1 1 1 . . . 1 1 1 1 . . . Scrap Searched 5 | . . 1 . . . . . . . 4 . . . . Spaces Dug 30 | . 6 . . . 6 . . 3 7 . . 4 3 1 Terrain Destroyed 169 | . 11 5 . . 64 . 28 14 25 . . 4 12 6 Melee 11 | . . . . . 2 . . 3 6 . . . . . Projectile 42 | . 6 . . . 4 . . . 10 . . 4 12 6 AOE 116 | . 5 5 . . 58 . 28 11 9 . . . . . Terrain Rammed . | . . . . . . . . . . . . . . . Walls Destroyed . | . . . . . . . . . . . . . . . Machines Disabled . | . . . . . . . . . . . . . . . Actions | -11 -10 -10 -10 -9 -8 -7 -7 -7 -6 -6 -6 -5 -5 -4 --------- Run | Scr Mat Min Exi Min Mat Fac Gar Fac Fac Low Low Fac DSF Fac Total 5252 | 100 430 429 267 63 1341 115 453 632 511 172 104 249 214 172 Wait 181 | 2 8 7 . . 94 1 21 6 6 . 1 11 18 6 Move 4279 | 65 355 385 260 61 986 107 343 559 434 170 91 214 116 133 Hop . | . . . . . . . . . . . . . . . Pick Up 111 | 9 6 5 2 1 36 2 12 9 9 1 3 6 8 2 Fast Attach 29 | 5 . . . . 12 1 1 2 1 . . 3 2 2 Attach 57 | 3 . 1 2 . 17 . 9 3 6 . . 1 9 6 Detach 33 | 1 . . 2 . 6 . 6 2 5 . . 1 5 5 Swap 153 | . 24 7 1 . 50 1 12 15 16 . 5 1 21 . Drop 111 | . 7 2 . 1 37 3 19 11 6 1 3 8 10 3 Fire 276 | 15 30 22 . . 100 . 26 20 21 . 1 4 25 12 Melee 12 | . . . . . 2 . . 3 7 . . . . . Ram 4 | . . . . . 1 . . . . . . . . 3 Kick . | . . . . . . . . . . . . . . . Crush 2 | . . . . . . . . 2 . . . . . . Escape Stasis 4 | . . . . . . . 4 . . . . . . . Rewire . | . . . . . . . . . . . . . . . Trap . | . . . . . . . . . . . . . . . Miscellaneous . | . . . . . . . . . . . . . . . Route ------- -11/Scrapyard -10/Materials (discovered 4 exits: [*Mat x3] / *Min) -10/Mines (discovered 3 exits: [*Mat x2] / *Exi) -10/Exiles -9/Mines -8/Materials (discovered 3 exits: *Fac x3) -7/Factory -7/Garrison -7/Factory -6/Factory (discovered 2 exits: [*Low x2]) -6/Lower Caves -6/Lower Caves -5/Factory (discovered 2 exits: *Fac / DSF) -5/DSF -4/Factory History --------- Turn | Location | Event 22 | -11/Scrapyard | Discovered new exit (range 16) 113 | -11/Scrapyard | Entered Materials 190 | -10/Materials | Discovered new exit (range 3) 323 | -10/Materials | Build established: Mutant 337 | -10/Materials | Central database locked down 361 | -10/Materials | Discovered new exit (range 15) 449 | -10/Materials | Identified exit to Mines 540 | -10/Materials | Discovered new exit (range 9) 579 | -10/Materials | Entered Mines 579 | -10/Mines | Accompanied by 1 ally 619 | -10/Mines | Met a Derelict bent on vengeance 627 | -10/Mines | A weapon hastily lodged in a ceiling crevice suddenly fell to the ground 649 | -10/Mines | Learned location of Storage (-7) 697 | -10/Mines | Core integrity fell below 50% 787 | -10/Mines | Learned location of 1 exit from Materials 955 | -10/Mines | Discovered new exit (range 12) 1013 | -10/Mines | Discovered new exit (range 13) 1032 | -10/Mines | Deemed a non-threat by the Exiles lab entrance 1032 | -10/Mines | Discovered new exit (range 5) 1036 | -10/Mines | Entered Exiles 1036 | -10/Exiles | Accompanied by 1 ally 1061 | -10/Exiles | Met 8R-AWN 1077 | -10/Exiles | Met EX-HEX 1136 | -10/Exiles | Met EX-BIN 1147 | -10/Exiles | Aligned with FarCom system 1148 | -10/Exiles | Given EX-Vault access code 1171 | -10/Exiles | Opened EX-Vault 1180 | -10/Exiles | Found Cloak of Protection 1201 | -10/Exiles | Warned to stay clear of 0b10 Research branches 1230 | -10/Exiles | Met EX-DEC 1282 | -10/Exiles | Discovered new exit (range 10) 1290 | -10/Exiles | Left Exiles lab with Cloak of Protection 1290 | -10/Exiles | Entered Mines 1290 | -9/Mines | Accompanied by 1 ally 1301 | -9/Mines | Received a Rocket Launcher from a helpful Derelict 1343 | -9/Mines | Discovered new exit (range 9) 1350 | -9/Mines | Entered Materials 1350 | -8/Materials | Accompanied by 1 ally 1350 | -8/Materials | Evolved 4 slots: Propulsion x1, Utility x2, Weapon x1 1351 | -8/Materials | Identified exit to Factory 1560 | -8/Materials | Central database locked down 2122 | -8/Materials | Build established: Skirmisher 2482 | -8/Materials | Discovered exit to Factory (range 11) 3018 | -8/Materials | Discovered exit to Factory (range 9) 3028 | -8/Materials | Entered Factory 3028 | -7/Factory | Evolved 2 slots: Utility x2 3028 | -7/Factory | Found Scrap Engine 3139 | -7/Factory | Identified exit to Garrison 3159 | -7/Factory | Entered Garrison 3194 | -7/Garrison | Found embedded Infiltrators 3227 | -7/Garrison | Triggered checkpoint 3242 | -7/Garrison | Triggered checkpoint 3450 | -7/Garrison | Triggered checkpoint 3686 | -7/Garrison | Triggered checkpoint 3708 | -7/Garrison | Installed Relay Interface Framework 3745 | -7/Garrison | Discovered new exit (range 12) 3765 | -7/Garrison | Entered Factory 3912 | -7/Factory | Build established: Scavenger-Skirmisher 4136 | -7/Factory | Fabricated Lrn. Tractor Beam? 4630 | -7/Factory | Discovered new exit (range 15) 4777 | -7/Factory | Entered another Factory area 4777 | -6/Factory | Evolved 2 slots: Propulsion x1, Utility x1 4953 | -6/Factory | Discovered new exit (range 10) 5100 | -6/Factory | Build established: Scavenger-Assassin 5283 | -6/Factory | Garrison activated, responded to threat 5541 | -6/Factory | Discovered new exit (range 18) 5604 | -6/Factory | Entered Lower Caves 5808 | -6/Lower Caves | Build established: Mutant 5814 | -6/Lower Caves | Discovered new exit (range 16) 5865 | -6/Lower Caves | Learned Factory trap positions 5878 | -6/Lower Caves | Entered another Lower Caves area 5942 | -6/Lower Caves | Learned Factory machine intel 6022 | -6/Lower Caves | Discovered new exit (range 12) 6038 | -6/Lower Caves | Spotted B-75 Beast 6040 | -6/Lower Caves | Entered Factory 6040 | -5/Factory | Evolved 2 slots: Power x1, Utility x1 6041 | -5/Factory | Loaded intel: 83 trap records 6042 | -5/Factory | Loaded intel: 290 machine locations 6174 | -5/Factory | Build established: Scavenger-Skirmisher 6175 | -5/Factory | Spotted B-75 Beast 6207 | -5/Factory | Discovered new exit (range 8) 6328 | -5/Factory | Identified exit to DSF 6421 | -5/Factory | Entered DSF 6461 | -5/DSF | Additional patrols routed to DSF 6739 | -5/DSF | Discovered new exit (range 11) 6755 | -5/DSF | Entered Factory 6755 | -4/Factory | Evolved 2 slots: Utility x2 7049 | -4/Factory | Self-destructed Last Messages --------------- 06912_ Overheating: Core damaged (-172). 06916_ Adv. Transmission Jammer broken. 06916_ Overheating: Short circuit. 06916_ Dropped Broken Adv. Transmission Jammer. 06918_ Acquired Broken Adv. Transmission Jammer. 06920_ Destroyed Lgt. Ion Engine. 06920_ K-01 Serf destroyed. 06924_ Acquired 11 matter. 06924_ Acquired 5 matter. 06924_ Acquired 10 matter. 06924_ Acquired 2 matter. 06947_ Acquired Wheel. 06976_ U-05 Engineer destroyed. 06984_ Acquired Terrain Scan Processor. 06985_ Acquired 1 matter. 07010_ R-10 Processor collects Terrain Scanner. 07017_ Dropped Imp. Matter Compressor. 07017_ R-10 Processor collects Imp. Matter Compressor. 07018_ Slammed into R-10 Processor. 07024_ Slammed into K-01 Serf. Map ----- +----------------------------------------------------+ | ???????? + #?#####????"?????? ? | | ???????? # ######? ? ???????? | | ????????#??############### #####??##????##?????? | | ??????????#?####[ # ######??###????? ? ? | | ?????????#??#?## # T #??##?##??#????????? | | ????? ?####?#?## ! + "" ###?#####?#????????? | | ????###??#?#?### # #?####?####????????? | | ?????##??####### # ####?##?#?##???????? | | ??##??########## ###########?###??#???????? | | ?#?????######### ######?#?#?## ?? ???????? | | #?#?############ #### ##?##### ? ?????????? | | ?###??########## " ####### ?? ???????? | | ??##?##?########""""" "" ##?# ??? ???????? | | ?? ## # ; ####????????????? | | ?? ## """" # ; ##?? ??????????? | | ? ## """"" # ; ###? ??????????? | | """ ## """ # ###? ? ?????????? | | ?"? ? ## # #######????????? | | ""? ?# # #####?#?????????? | | ? ? ## # #?##?##?????????? | | """? ## # #######?????????? | | ""?? ## "S + ;####?###?????????? | | """ ## """ # ; ##?###??????????? | | ? ? ## "" # ;### ? ? ???????? | | ? ## #######+# ;;;##? ?????????? | | ######+?#######+#### @ ####?# ? ?"????????? | | ? #####?? ?????????? | | ? ^^ ##?### ? ?????????? | | #####? ??????????? | | ? ? ##?###? ????????????? | | ? ? ####?? ?????????????? | | ? #?#?#?###???????????? | | ?? ?? t ## ? g????????????? | | ?#####/############# R ## ?g ????????????? | | ? ? ? ###########;; #### ? ?g????????????? | | ???? ? ? ############# ####? ????????????????? | | ???? ?? ?############ ####???#??????????????? | | ??? ?????#??##?#?##?#; ####? ????????????????? | | ???????? ##?#?#?##??## ###? ?????????????????? | | ?????????????????????# #??? ?????????????????? | | ?????????????????????# "#????????????????????? | | ?????????????????????# ?????????????????????? | | ?????????????????????? ?????????????????????? | | ?????????????????????? ?????H????????????????? | | ?????????????????????????????????????????????????? | | ?????????????????????????????????????????????????? | | ?????????????????????????????????????????????????? | | ?????????????????????????????????????????????????? | | ?????????????????????????????????????????????????? | | ?????????????????????????????????????????????????? | +----------------------------------------------------+ Best States ------------- Heat Dissipation 56 Energy Generation 31 Energy Capacity 534 Matter Stores 300 Matter Capacity 300 Sight Range 18 Terrain Scan Range 16 Terrain Scan Density 285 Jamming Range 16 Cloak Strength 5 Armor Coverage 150 Resistance: KI 20 Weapon Cycling 15 Evasion (%) 50 Targeting Accuracy 16 Recoil Reduction 4 Kinecelleration 40 Item Schematics ----------------- Lrn. Tractor Beam | -7/Factory | Hacked Robot Schematics ------------------ None Fabricated ------------ Lrn. Tractor Beam | x2 | -7/Factory Alien Tech Used ----------------- None Achievements -------------- None Challenges ------------ None Game ------ Seed ElectronThrusterRail Manual? 0 Play Time 01:51:58 Cumulative 776.3 hours Start 2022.09.07 @ 19:22:30 End 2022.09.07 @ 21:54:13 Sessions 3 Manual Loads 0 Difficulty Rogue Special Mode None Game No. 408 Rogue 281 Adventurer 125 Explorer 2 Win Type - Total 93 Types 78/7/4/1/1/0/0/1/1 Lore% 82 Gallery% 88 Achievement% 78 Wizard Run 0 Options --------- ASCII 0 Keyboard 1 Movement Numpad Keybinds 0 Fullscreen 1 Font 36/TerminusFine Map View 76x50 Tactical HUD 1 Map Filters NONE Filters NONE Steam 1 RUN: 44d78094-16e4-433f-8318-9e00b412f564